bitfinex/quotes_SOLUSD_20230116
["timestamp","ask_amount","ask_price","bid_price","bid_amount"]
[1673896136359,21.46196354,23.711,23.69,108.8298]
[1673896136985,17.0,23.71,23.674,7.38735004]
[1673896137194,20.0,23.709,23.675,114.8948]
[1673896137407,17.0,23.708,23.676,4.87348]
[1673896137623,20.0,23.707,23.676,4.87348]
[1673896137836,17.0,23.706,23.676,4.87348]
[1673896138052,38.46196354,23.706,23.676,4.87348]
[1673896138365,55.49065401,23.705,23.676,4.87348]
[1673896138767,38.46196354,23.704,23.676,4.87348]
[1673896138977,20.0,23.703,23.676,4.87348]
[1673896139182,20.0,23.701,23.676,4.87348]
[1673896139397,37.0,23.7,23.676,4.87348]
[1673896139617,58.46196354,23.7,23.676,4.87348]
[1673896139810,21.46196354,23.699,23.676,4.87348]
[1673896140031,17.0,23.698,23.676,4.87348]
[1673896140248,40.0,23.697,23.676,4.87348]
[1673896140564,38.46196354,23.696,23.676,4.87348]
[1673896140775,20.0,23.695,23.676,4.87348]
[1673896140987,41.46196354,23.695,23.648,4.33545784]
[1673896141215,20.0,23.694,23.65,40.06]
[1673896141518,20.0,23.693,23.652,4.87842]
[1673896141704,35.49065401,23.693,23.652,11.14236832]
[1673896141909,21.46196354,23.692,23.652,11.14236832]
[1673896142129,20.0,23.69,23.653,17.0]
[1673896142341,20.0,23.689,23.654,4.87801]
[1673896142556,41.46196354,23.689,23.654,4.87801]
[1673896142769,21.46196354,23.688,23.654,4.87801]
[1673896143092,37.0,23.687,23.654,4.87801]
[1673896143296,20.0,23.686,23.654,4.87801]
[1673896143491,41.46196354,23.686,23.654,4.87801]
[1673896143698,41.46196354,23.685,23.654,4.87801]
[1673896144135,20.0,23.683,23.654,4.87801]
[1673896144339,20.0,23.682,23.654,4.87801]
[1673896144556,41.46196354,23.682,23.654,4.87801]
[1673896144765,21.46196354,23.681,23.654,4.87801]
[1673896144958,38.46196354,23.681,23.654,4.87801]
[1673896145175,20.0,23.679,23.654,4.87801]
[1673896145384,17.0,23.678,23.654,4.87801]
[1673896145595,38.46196354,23.678,23.654,4.87801]
[1673896145810,41.46196354,23.677,23.654,4.87801]
[1673896146026,17.0,23.676,23.654,4.87801]
[1673896146238,20.0,23.674,23.622,20.0]
[1673896146451,17.0,23.673,23.624,4.88421]
[1673896146660,20.0,23.672,23.624,4.88421]
[1673896146884,17.0,23.671,23.624,4.88421]
[1673896147105,20.0,23.67,23.624,4.88421]
[1673896147418,78.78492239,23.669,23.624,4.88421]
[1673896147600,142.94703095,23.669,23.624,4.88421]
[1673896147811,57.2755764,23.668,23.624,4.88421]
[1673896148134,20.0,23.666,23.624,4.88421]
[1673896148341,20.0,23.665,23.624,4.88421]
[1673896148551,35.49065401,23.665,23.624,4.88421]
[1673896148876,21.46196354,23.664,23.624,4.88421]
[1673896149080,20.0,23.663,23.624,4.88421]
[1673896149296,20.0,23.662,23.624,4.88421]
[1673896149496,95.19079903,23.662,23.624,4.88421]
[1673896149699,64.16210856,23.661,23.624,4.88421]
[1673896149917,17.0,23.66,23.624,4.88421]
[1673896150147,20.0,23.659,23.624,4.88421]
[1673896150335,17.0,23.658,23.624,4.88421]
[1673896150546,58.78492239,23.658,23.624,4.88421]
[1673896150764,6.32467834,23.656,23.624,4.88421]
[1673896150977,37.0,23.655,23.624,4.88421]
[1673896151191,6.18657292,23.653,23.624,4.88421]
[1673896151501,37.0,23.652,23.624,4.88421]
[1673896151724,4.82646958,23.651,23.624,4.88421]
[1673896151907,17.0,23.65,23.624,4.88421]
[1673896152118,20.0,23.648,23.624,4.88421]
[1673896152327,20.0,23.647,23.624,4.88421]
[1673896152559,83.25931403,23.647,23.624,4.88421]
[1673896152872,72.45051327,23.646,23.624,4.88421]
[1673896153085,20.0,23.644,23.624,4.88421]
[1673896153301,20.0,23.643,23.599,78.29024026]
[1673896153483,20.0,23.643,23.6,12.68886034]
[1673896153484,41.46196354,23.643,23.6,12.68886034]
[1673896153698,20.0,23.644,23.601,10.56732659]
[1673896153914,117.7283,23.667,23.648,33.09536724]
[1673896154258,4.11973164,23.676,23.648,33.09536724]
[1673896154259,21.46196354,23.653,23.648,33.09536724]
[1673896154441,20.0,23.675,23.648,33.09536724]
[1673896154655,21.46196354,23.662,23.648,33.09536724]
[1673896155189,20.0,23.675,23.648,33.09536724]
[1673896155382,21.46196354,23.662,23.648,33.09536724]
[1673896155717,4.87441,23.661,23.648,33.09536724]
[1673896156126,42.92392708,23.66,23.648,33.09536724]
[1673896156323,21.46196354,23.66,23.648,33.09536724]
[1673896156535,4.87441,23.659,23.648,33.09536724]
[1673896156954,4.87441,23.659,23.65,20.0]
[1673896157388,4.87441,23.659,23.648,33.09536724]
[1673896157585,26.33637354,23.659,23.648,33.09536724]
[1673896158236,41.46196354,23.658,23.648,33.09536724]
[1673896158468,4.87441,23.657,23.648,33.09536724]
[1673896158676,17.0,23.656,23.648,33.09536724]
[1673896158986,20.0,23.654,23.648,33.09536724]
[1673896159193,20.0,23.653,23.648,33.09536724]
[1673896159409,41.46196354,23.653,23.648,33.09536724]
[1673896159809,20.0,23.653,23.648,33.09536724]
[1673896160014,41.46196354,23.652,23.648,33.09536724]
[1673896160247,24.87441,23.651,23.648,33.09536724]
[1673896160442,20.0,23.705,23.648,33.09536724]
[1673896160657,21.46196354,23.656,23.648,33.09536724]
[1673896160867,20.0,23.672,23.648,33.09536724]
[1673896161192,24.87441,23.671,23.648,33.09536724]
[1673896161383,4.87441,23.67,23.648,33.09536724]
[1673896161816,26.33637354,23.67,23.648,33.09536724]
[1673896162039,20.0,23.668,23.648,33.09536724]
[1673896162251,4.87441,23.667,23.648,33.09536724]
[1673896162572,26.33637354,23.667,23.648,33.09536724]
[1673896162755,15.49065401,23.666,23.648,33.09536724]
[1673896162958,4.87441,23.665,23.648,33.09536724]
[1673896164345,21.46196354,23.664,23.648,33.09536724]
[1673896164564,24.87441,23.663,23.648,33.09536724]
[1673896164874,20.0,23.661,23.648,33.09536724]
[1673896165062,17.0,23.66,23.648,33.09536724]
[1673896165271,24.87441,23.659,23.648,33.09536724]
[1673896165518,4.87441,23.658,23.648,33.09536724]
[1673896165904,3.37891,23.658,23.648,33.09536724]
[1673896166119,3.37891,23.658,23.649,20.0]
[1673896166848,1e-05,23.658,23.651,20.0]
[1673896168646,1e-05,23.658,23.649,20.0]
[1673896168855,1e-05,23.658,23.648,33.09536724]
[1673896171905,1e-05,23.658,23.649,20.0]
[1673896172116,20.0,23.678,23.649,20.0]
[1673896172314,4.87441,23.677,23.65,17.0]
[1673896172523,4.87441,23.677,23.65,41.08016927]
[1673896172962,37.0,23.676,23.651,20.0]
[1673896173173,24.87441,23.675,23.651,20.0]
[1673896173501,21.87441,23.674,23.651,61.08016927]
[1673896173681,24.87441,23.673,23.651,61.08016927]
[1673896173892,20.0,23.671,23.651,20.0]
[1673896174098,21.87441,23.67,23.651,20.0]
[1673896174316,24.87441,23.669,23.649,41.08016927]
[1673896174528,21.87441,23.668,23.648,33.09536724]
[1673896174735,24.87441,23.667,23.648,33.09536724]
[1673896174945,41.87441,23.666,23.648,33.09536724]
[1673896175156,24.87441,23.665,23.648,33.09536724]
[1673896175380,21.87441,23.664,23.648,33.09536724]
[1673896175589,4.87441,23.663,23.648,33.09536724]
[1673896176649,20.0,23.688,23.649,25.57282797]
[1673896176858,20.0,23.688,23.65,6.55614851]
[1673896177053,20.0,23.688,23.651,20.0]
[1673896177265,20.0,23.688,23.652,17.0]
[1673896177479,20.0,23.697,23.654,4.42851999]
[1673896177679,20.0,23.697,23.655,17.0]
[1673896178101,4.87441,23.696,23.657,4.56399931]
[1673896178309,4.87441,23.696,23.658,17.0]
[1673896178521,4.87441,23.696,23.66,7.78082228]
[1673896178730,4.87441,23.696,23.661,37.0]
[1673896178958,4.87441,23.696,23.662,26.15142818]
[1673896179165,4.87441,23.696,23.663,24.90422297]
[1673896179363,4.87441,23.696,23.664,6.48301994]
[1673896179575,20.0,23.711,23.665,40.0]
[1673896179788,21.46196354,23.705,23.666,24.43458166]
[1673896179997,24.87441,23.704,23.667,40.0]
[1673896180217,4.87441,23.703,23.668,17.0]
[1673896180406,20.36506401,23.703,23.668,17.0]
[1673896180636,21.46196354,23.702,23.668,17.0]
[1673896180852,24.87441,23.701,23.665,115.6803]
[1673896181178,26.33637354,23.7,23.665,115.6803]
[1673896181369,4.87441,23.699,23.665,115.6803]
[1673896181579,26.33637354,23.699,23.665,115.6803]
[1673896181788,26.33637354,23.699,23.64,40.53]
[1673896181789,98.18016661,23.698,23.64,20.0]
[1673896181997,4.87441,23.696,23.651,111.0916]
[1673896182218,22.49209252,23.695,23.651,111.0916]
[1673896182437,4.87441,23.693,23.647,110.7317]
[1673896182648,17.0,23.692,23.647,110.7317]
[1673896182857,4.87441,23.69,23.647,110.7317]
[1673896183173,17.0,23.689,23.647,110.7317]
[1673896183382,4.87441,23.687,23.647,110.7317]
[1673896183575,17.0,23.686,23.647,110.7317]
[1673896183785,44.87441,23.685,23.649,20.0]
[1673896183999,4.87441,23.684,23.649,20.0]
[1673896184212,26.33637354,23.684,23.649,20.0]
[1673896184436,20.0,23.683,23.649,46.5846138]
[1673896184626,4.87441,23.682,23.65,23.52601318]
[1673896184837,4.87441,23.682,23.652,5.05446076]
[1673896185052,20.36506401,23.682,23.653,17.0]
[1673896185274,20.36506401,23.682,23.653,38.46196354]
[1673896185465,4.87441,23.681,23.654,20.0]
[1673896185686,4.87441,23.681,23.655,17.0]
[1673896186112,20.0,23.699,23.656,5.27405764]
[1673896186311,21.46196354,23.691,23.657,37.0]
[1673896186513,4.87441,23.69,23.657,37.0]
[1673896186726,4.87441,23.69,23.658,20.0]
[1673896186947,21.46196354,23.689,23.659,20.0]
[1673896187161,26.33637354,23.689,23.659,20.0]
[1673896187585,4.87441,23.688,23.659,20.0]
[1673896187800,4.87441,23.688,23.66,20.0]
[1673896187991,21.46196354,23.687,23.662,20.0]
[1673896188204,24.87441,23.686,23.663,20.0]
[1673896188415,4.87441,23.685,23.664,17.0]
[1673896188618,17.0,23.684,23.663,20.0]
[1673896188849,4.87441,23.683,23.663,20.0]
[1673896189248,4.87441,23.683,23.664,17.0]
[1673896189454,4.87441,23.683,23.665,20.0]
[1673896189892,4.87441,23.683,23.666,17.0]
[1673896190098,21.46196354,23.693,23.667,20.0]
[1673896190300,20.0,23.697,23.668,21.89432422]
[1673896190539,20.0,23.698,23.669,20.0]
[1673896190722,15.49065401,23.696,23.67,37.0]
[1673896191141,15.49065401,23.696,23.67,17.0]
[1673896191356,20.0,23.695,23.66,138.58365874]
[1673896191561,20.0,23.695,23.66,110.9062]
[1673896191795,46.33637354,23.694,23.66,110.9062]
[1673896192006,24.87441,23.693,23.66,110.9062]
[1673896192231,4.87441,23.692,23.66,110.9062]
[1673896192430,17.0,23.691,23.66,110.9062]
[1673896192754,17.0,23.691,23.661,20.0]
[1673896192755,20.0,23.69,23.661,20.0]
[1673896192962,20.0,23.69,23.662,5.94767279]
[1673896193378,21.46196354,23.694,23.662,21.46196354]
[1673896193708,21.46196354,23.69,23.661,20.0]
[1673896193897,20.0,23.689,23.662,17.0]
[1673896194316,32.49065401,23.688,23.662,17.0]
[1673896194544,32.49065401,23.688,23.661,20.0]
[1673896194732,41.46196354,23.687,23.662,7.19398321]
[1673896194942,20.0,23.687,23.662,7.19398321]
[1673896195384,20.0,23.691,23.663,20.0]
[1673896195580,21.46196354,23.686,23.663,20.0]
[1673896195793,20.0,23.685,23.663,20.0]
[1673896196005,20.0,23.685,23.66,110.9062]
[1673896196214,38.46196354,23.684,23.66,110.9062]
[1673896196418,20.0,23.685,23.66,110.9062]
[1673896196629,32.49065401,23.684,23.661,20.0]
[1673896196843,20.0,23.683,23.661,20.0]
[1673896197048,17.0,23.682,23.661,20.0]
[1673896197260,20.0,23.681,23.66,110.9062]
[1673896197474,17.0,23.68,23.66,110.9062]
[1673896197681,40.0,23.679,23.66,110.9062]
[1673896197898,17.0,23.678,23.66,110.9062]
[1673896198113,20.0,23.677,23.66,110.9062]
[1673896198317,20.0,23.677,23.651,20.0]
[1673896198318,17.0,23.676,23.651,20.0]
[1673896198524,20.0,23.674,23.651,20.0]
[1673896198734,41.87441,23.673,23.652,1.45355346]
[1673896198946,4.87441,23.672,23.652,1.45355346]
[1673896199169,17.0,23.671,23.652,1.45355346]
[1673896199488,20.0,23.67,23.652,1.45355346]
[1673896199681,37.0,23.669,23.652,1.45355346]
[1673896200010,20.0,23.669,23.652,1.45355346]
[1673896200226,17.0,23.668,23.652,1.45355346]
[1673896200407,20.0,23.667,23.652,1.45355346]
[1673896200622,17.0,23.666,23.652,1.45355346]
[1673896200832,38.46196354,23.666,23.652,1.45355346]
[1673896201151,21.46196354,23.665,23.652,1.45355346]
[1673896201373,17.0,23.664,23.652,1.45355346]
[1673896201570,20.0,23.662,23.652,1.45355346]
[1673896201773,37.0,23.661,23.652,1.45355346]
[1673896202306,21.46196354,23.66,23.652,1.45355346]
[1673896202525,20.0,23.659,23.652,1.45355346]
[1673896202731,20.0,23.661,23.652,1.45355346]
[1673896203052,38.46196354,23.66,23.652,1.45355346]
[1673896203278,20.0,23.659,23.652,1.45355346]
[1673896203681,20.0,23.681,23.652,1.45355346]
[1673896203989,21.46196354,23.669,23.652,1.45355346]
[1673896204312,20.0,23.668,23.652,1.45355346]
[1673896204529,20.0,23.667,23.652,1.45355346]
[1673896204738,4.87441,23.666,23.652,1.45355346]
[1673896204933,46.33637354,23.666,23.652,1.45355346]
[1673896205149,21.46196354,23.665,23.652,1.45355346]
[1673896205364,37.0,23.664,23.652,1.45355346]
[1673896205576,4.87441,23.663,23.652,1.45355346]
[1673896205765,17.0,23.662,23.652,1.45355346]
[1673896205975,17.0,23.662,23.648,33.09536724]
[1673896205976,4.87441,23.661,23.648,22.09536724]
[1673896206204,20.0,23.66,23.609,114.059]
[1673896206401,4.87441,23.659,23.609,114.059]
[1673896206605,45.12800641,23.659,23.622,20.0]
[1673896206846,81.71555995,23.658,23.622,20.0]
[1673896207157,66.58996995,23.657,23.622,134.059]
[1673896207344,20.0,23.656,23.622,134.059]
[1673896207555,41.46196354,23.656,23.622,134.059]
[1673896207763,4.87441,23.657,23.622,134.059]
[1673896207764,24.87441,23.655,23.622,134.059]
[1673896207977,4.87441,23.654,23.622,134.059]
[1673896208196,79.12637804,23.654,23.622,134.059]
[1673896208403,20.0,23.652,23.622,134.059]
[1673896208735,40.36506401,23.651,23.622,20.0]
[1673896208934,21.87441,23.65,23.622,20.0]
[1673896209261,24.87441,23.649,23.622,20.0]
[1673896209453,17.0,23.648,23.622,20.0]
[1673896209779,24.87441,23.647,23.622,20.0]
[1673896209981,21.87441,23.646,23.622,20.0]
[1673896210199,24.87441,23.645,23.622,20.0]
[1673896210409,21.87441,23.644,23.622,20.0]
[1673896210600,24.87441,23.643,23.622,20.0]
[1673896210807,21.87441,23.642,23.616,20.0]
[1673896211032,20.0,23.641,23.622,20.0]
[1673896211261,17.0,23.64,23.622,20.0]
[1673896211448,20.0,23.639,23.622,20.0]
[1673896211654,17.0,23.638,23.616,20.0]
[1673896211876,24.87441,23.637,23.616,20.0]
[1673896212083,21.87441,23.636,23.615,71.67085238]
[1673896212289,21.87441,23.636,23.611,71.90420237]
[1673896212290,24.87441,23.635,23.611,71.90420237]
[1673896212508,17.0,23.634,23.613,71.3694281]
[1673896212705,20.0,23.633,23.613,71.3694281]
[1673896212912,17.0,23.632,23.613,71.3694281]
[1673896213123,20.0,23.631,23.613,71.3694281]
[1673896213441,4.87441,23.635,23.615,71.67085238]
[1673896213662,20.0,23.647,23.616,17.0]
[1673896213867,20.0,23.648,23.616,17.0]
[1673896214091,20.0,23.65,23.616,17.0]
[1673896214300,24.87441,23.65,23.617,20.0]
[1673896214515,24.87441,23.65,23.618,17.0]
[1673896214832,4.87441,23.65,23.618,17.0]
[1673896215146,21.46196354,23.653,23.618,17.0]
[1673896215340,21.46196354,23.653,23.619,20.0]
[1673896215543,20.0,23.66,23.619,20.0]
[1673896215544,20.0,23.66,23.62,37.0]
[1673896215753,26.33637354,23.659,23.621,20.0]
[1673896215972,4.87441,23.658,23.621,20.0]
[1673896216288,20.36506401,23.658,23.622,20.0]
[1673896216503,4.87441,23.658,23.623,20.0]
[1673896216703,21.46196354,23.657,23.622,166.8213778]
[1673896217122,21.46196354,23.657,23.623,21.46196354]
[1673896217339,20.0,23.656,23.625,20.0]
[1673896217549,20.0,23.656,23.626,17.0]
[1673896217763,21.46196354,23.655,23.627,20.0]
[1673896217955,21.46196354,23.655,23.628,17.0]
[1673896218170,21.46196354,23.655,23.629,20.0]
[1673896218381,21.46196354,23.655,23.631,20.0]
[1673896218602,21.46196354,23.655,23.632,20.0]
[1673896219242,37.0,23.654,23.625,20.0]
[1673896219448,20.0,23.653,23.625,20.0]
[1673896219651,37.0,23.652,23.625,20.0]
[1673896219850,58.46196354,23.652,23.625,20.0]
[1673896220065,21.46196354,23.651,23.625,20.0]
[1673896220275,20.0,23.649,23.625,20.0]
[1673896220491,20.0,23.649,23.623,20.0]
[1673896220492,20.0,23.648,23.623,20.0]
[1673896220816,17.0,23.647,23.623,20.0]
[1673896221024,21.46196354,23.647,23.623,20.0]
[1673896221221,38.46196354,23.646,23.623,20.0]
[1673896221557,21.46196354,23.645,23.623,20.0]
[1673896222093,139.4315,23.672,23.623,20.0]
[1673896222271,20.0,23.651,23.623,20.0]
[1673896222606,17.0,23.65,23.623,20.0]
[1673896222916,20.0,23.649,23.623,20.0]
[1673896223124,17.0,23.648,23.62,20.0]
[1673896223442,17.0,23.648,23.622,20.0]
[1673896223443,24.87441,23.647,23.622,20.0]
[1673896223649,4.87441,23.646,23.622,20.0]
[1673896223967,15.49065401,23.646,23.622,91.01519465]
[1673896224183,139.4315,23.672,23.622,91.01519465]
[1673896224368,139.4315,23.672,23.624,71.64014651]
[1673896224584,21.46196354,23.667,23.626,6.41680837]
[1673896224796,20.0,23.68,23.632,20.0]
[1673896225002,21.46196354,23.678,23.633,4.65978639]
[1673896225219,114.48297657,23.699,23.633,4.65978639]
[1673896225220,34.87268382,23.683,23.65,20.17]
[1673896225540,21.46196354,23.688,23.651,23.31290347]
[1673896225750,21.46196354,23.688,23.652,24.76769344]
[1673896225977,20.0,23.703,23.653,22.73925703]
[1673896226179,26.33637354,23.702,23.654,20.0]
[1673896226388,24.87441,23.701,23.655,24.62476113]
[1673896226603,21.87441,23.7,23.655,62.51642873]
[1673896226812,24.87441,23.699,23.656,20.0]
[1673896227021,4.87441,23.698,23.656,114.20622093]
[1673896227236,88.08330014,23.698,23.656,35.78223594]
[1673896227450,129.2,23.696,23.656,35.78223594]
[1673896227646,20.0,23.694,23.639,20.0]
[1673896227861,24.87441,23.693,23.639,20.0]
[1673896228058,4.87441,23.691,23.639,20.0]
[1673896228273,20.0,23.689,23.639,20.0]
[1673896228507,129.2,23.687,23.638,108.8016]
[1673896228692,4.87441,23.685,23.634,118.4486]
[1673896228905,129.2,23.683,23.634,118.4486]
[1673896229115,8.91947316,23.681,23.634,118.4486]
[1673896229328,134.07441,23.679,23.625,108.8016]
[1673896229547,5.23269402,23.676,23.625,108.8016]
[1673896229764,4.87441,23.674,23.625,108.8016]
[1673896229966,17.0,23.673,23.625,108.8016]
[1673896230179,20.0,23.671,23.621,112.2631]
[1673896230393,41.87441,23.67,23.621,112.2631]
[1673896230582,4.87441,23.669,23.621,112.2631]
[1673896230797,17.0,23.668,23.621,112.2631]
[1673896231002,4.87441,23.667,23.621,112.2631]
[1673896231232,20.0,23.665,23.622,20.0]
[1673896231548,21.87441,23.664,23.622,20.0]
[1673896231775,20.0,23.662,23.622,20.0]
[1673896231955,41.87441,23.661,23.622,20.0]
[1673896232168,22.336559,23.66,23.622,91.01519465]
[1673896232378,20.0,23.659,23.623,93.82992502]
[1673896232577,20.0,23.661,23.624,4.1814309]
[1673896232914,20.0,23.661,23.625,114.89590998]
[1673896233120,21.46196354,23.66,23.627,20.0]
[1673896233340,20.0,23.659,23.627,91.98034668]
[1673896233522,20.0,23.659,23.622,91.01519465]
[1673896233734,26.33637354,23.658,23.622,91.01519465]
[1673896234155,20.0,23.656,23.622,91.01519465]
[1673896234367,17.0,23.655,23.622,91.01519465]
[1673896234579,32.49065401,23.655,23.622,91.01519465]
[1673896234785,41.46196354,23.654,23.622,91.01519465]
[1673896235005,41.46196354,23.654,23.623,93.82992502]
[1673896235006,17.0,23.653,23.623,93.82992502]
[1673896235216,20.0,23.651,23.624,20.0]
[1673896235429,37.0,23.65,23.624,20.0]
[1673896235640,52.49065401,23.65,23.624,20.0]
[1673896236045,20.0,23.648,23.623,93.82992502]
[1673896236276,37.0,23.647,23.623,93.82992502]
[1673896236483,58.46196354,23.647,23.623,93.82992502]
[1673896236823,15.49065401,23.646,23.623,93.82992502]
[1673896237033,20.0,23.645,23.623,93.82992502]
[1673896237221,20.0,23.645,23.624,20.0]
[1673896237767,20.0,23.65,23.625,17.0]
[1673896238170,20.0,23.652,23.626,20.0]
[1673896238381,20.0,23.652,23.627,17.0]
[1673896238795,41.46196354,23.656,23.623,93.82992502]
[1673896238796,15.49065401,23.651,23.623,93.82992502]
[1673896239017,20.0,23.65,23.623,137.34923229]
[1673896239237,20.0,23.65,23.624,20.0]
[1673896239449,21.46196354,23.649,23.624,20.0]
[1673896239634,17.0,23.648,23.624,20.0]
[1673896239845,17.0,23.648,23.623,93.82992502]
[1673896239846,20.0,23.647,23.623,93.82992502]
[1673896240057,35.49065401,23.647,23.625,20.0]
[1673896240272,20.0,23.647,23.626,17.0]
[1673896240479,41.46196354,23.647,23.624,71.64014651]
[1673896240916,41.46196354,23.647,23.623,93.82992502]
[1673896241120,41.46196354,23.647,23.624,20.0]
[1673896241536,20.0,23.647,23.624,20.0]
[1673896241748,21.46196354,23.648,23.624,20.0]
[1673896241958,20.0,23.647,23.624,20.0]
[1673896242590,20.0,23.67,23.624,20.0]
[1673896242591,20.0,23.655,23.625,17.0]
[1673896242794,20.0,23.668,23.625,17.0]
[1673896243007,21.46196354,23.663,23.626,20.0]
[1673896243223,21.46196354,23.663,23.627,17.0]
[1673896243653,21.46196354,23.663,23.629,20.0]
[1673896243964,26.33637354,23.663,23.63,17.0]
[1673896244155,20.0,23.662,23.63,17.0]
[1673896244365,41.46196354,23.662,23.63,17.0]
[1673896244589,46.33637354,23.661,23.629,20.0]
[1673896244916,41.46196354,23.66,23.631,43.51930727]
[1673896245122,20.0,23.658,23.629,20.0]
[1673896245340,20.0,23.657,23.626,20.0]
[1673896245643,41.46196354,23.657,23.626,20.0]
[1673896246048,21.46196354,23.656,23.626,20.0]
[1673896246264,20.0,23.655,23.626,20.0]
[1673896246474,17.0,23.654,23.626,20.0]
[1673896246684,17.0,23.655,23.628,20.0]
[1673896246907,15.49065401,23.653,23.627,43.51930727]
[1673896247126,37.0,23.652,23.626,20.0]
[1673896247544,21.46196354,23.651,23.626,20.0]
[1673896247742,20.0,23.649,23.623,113.82992502]
[1673896247954,20.0,23.647,23.623,93.82992502]
[1673896248390,17.0,23.646,23.623,93.82992502]
[1673896248721,20.0,23.645,23.623,93.82992502]
[1673896249025,20.0,23.645,23.624,20.0]
[1673896249241,17.0,23.644,23.624,20.0]
[1673896249642,20.0,23.643,23.624,20.0]
[1673896249858,20.0,23.645,23.625,17.0]
[1673896250073,17.0,23.644,23.626,20.0]
[1673896250267,20.0,23.643,23.626,20.0]
[1673896250475,17.0,23.642,23.624,20.0]
[1673896250705,20.0,23.641,23.623,93.82992502]
[1673896251018,20.0,23.641,23.624,20.0]
[1673896251343,20.0,23.648,23.624,20.0]
[1673896251534,17.0,23.647,23.624,20.0]
[1673896251737,20.0,23.646,23.625,17.0]
[1673896251952,17.0,23.645,23.631,50.0]
[1673896252282,20.0,23.646,23.631,50.0]
[1673896252498,21.46196354,23.645,23.631,50.0]
[1673896252811,132.1384,23.665,23.631,50.0]
[1673896253007,132.1384,23.665,23.633,20.0]
[1673896253225,21.46196354,23.657,23.633,20.0]
[1673896253421,20.0,23.656,23.633,20.0]
[1673896253634,20.0,23.656,23.631,50.0]
[1673896253845,21.46196354,23.655,23.631,50.0]
[1673896254059,20.0,23.654,23.631,50.0]
[1673896254372,20.0,23.652,23.631,50.0]
[1673896255117,41.46196354,23.654,23.632,20.0]
[1673896255549,41.46196354,23.654,23.631,50.0]
[1673896255742,17.0,23.653,23.631,50.0]
[1673896255955,20.0,23.652,23.631,50.0]
[1673896256156,17.0,23.651,23.631,50.0]
[1673896256373,37.0,23.651,23.631,50.0]
[1673896256586,58.46196354,23.651,23.631,50.0]
[1673896256807,20.0,23.649,23.631,50.0]
[1673896257012,20.0,23.648,23.631,50.0]
[1673896257211,17.0,23.647,23.631,50.0]
[1673896257417,20.0,23.645,23.631,50.0]
[1673896257641,17.0,23.644,23.631,50.0]
[1673896257853,20.0,23.648,23.632,20.0]
[1673896258275,20.0,23.648,23.631,50.0]
[1673896258472,21.46196354,23.648,23.631,50.0]
[1673896259429,20.0,23.652,23.632,43.46026127]
[1673896259642,21.46196354,23.651,23.632,43.46026127]
[1673896259849,20.0,23.65,23.631,50.0]
[1673896260251,41.46196354,23.649,23.631,50.0]
[1673896260467,17.0,23.648,23.631,50.0]
[1673896260796,61.46196354,23.647,23.631,50.0]
[1673896260988,17.0,23.646,23.631,50.0]
[1673896261198,20.0,23.645,23.631,50.0]
[1673896261414,17.0,23.644,23.631,50.0]
[1673896261629,20.0,23.642,23.631,50.0]
[1673896261853,20.0,23.64,23.631,50.0]
[1673896262053,17.0,23.639,23.631,50.0]